bitfinex/quotes_SOLUSD_20241016
["timestamp","ask_amount","ask_price","bid_price","bid_amount"]
[1729100696433,16.5863,155.62,155.49,23.776884]
[1729100696434,6.4278,155.58,155.49,23.776884]
[1729100696745,6.4281,155.57,155.5,11.46225114]
[1729100697331,6.4284,155.56,155.5,11.46225114]
[1729100698038,6.4284,155.56,155.48,24.86680143]
[1729100698241,6.4284,155.56,155.5,11.46225114]
[1729100698451,6.428,155.57,155.5,11.46225114]
[1729100700641,16.0662,155.61,155.5,11.46225114]
[1729100700944,6.4276,155.58,155.52,11.46225114]
[1729100703545,6.70962127,155.61,155.52,11.46225114]
[1729100703744,6.427,155.6,155.52,11.46225114]
[1729100704731,6.4271,155.59,155.52,11.46225114]
[1729100707929,6.428,155.57,155.49,23.776884]
[1729100708248,6.428,155.57,155.51,11.46225114]
[1729100710744,6.4277,155.58,155.51,11.46225114]
[1729100716754,6.70962127,155.61,155.51,11.46225114]
[1729100716953,6.4273,155.59,155.51,11.46225114]
[1729100719862,6.70962127,155.61,155.53,11.46225114]
[1729100720155,6.4263,155.61,155.55,11.46225114]
[1729100720859,16.5863,155.62,155.55,11.46225114]
[1729100721040,23.0122,155.62,155.55,11.46225114]
[1729100722466,6.4263,155.61,155.55,11.46225114]
[1729100722643,6.4268,155.6,155.53,11.46225114]
[1729100724257,16.5863,155.62,155.52,6.4847]
[1729100724449,6.4272,155.59,155.53,11.46225114]
[1729100724850,6.4272,155.59,155.52,6.4847]
[1729100725054,6.4276,155.58,155.53,11.46225114]
[1729100725742,6.4276,155.58,155.51,11.46225114]
[1729100726064,6.4281,155.57,155.51,11.46225114]
[1729100732242,6.4281,155.57,155.49,8.41220143]
[1729100732243,16.1186,155.56,155.49,8.41220143]
[1729100732569,16.1186,155.56,155.43,16.5016]
[1729100732570,6.4308,155.51,155.44,11.46225114]
[1729100733369,6.43,155.52,155.44,11.46225114]
[1729100733569,20.0,155.55,155.48,11.46225114]
[1729100733752,11.24534942,155.54,155.48,11.46225114]
[1729100734069,6.4292,155.54,155.48,11.46225114]
[1729100734282,6.4292,155.54,155.43,16.5016]
[1729100734577,6.4296,155.53,155.47,11.46225114]
[1729100735068,16.1186,155.56,155.47,11.46225114]
[1729100735069,6.4301,155.52,155.47,11.46225114]
[1729100735772,6.4301,155.52,155.44,23.776884]
[1729100735969,6.4301,155.52,155.45,11.46225114]
[1729100736565,23.776884,155.53,155.43,16.5016]
[1729100736764,23.776884,155.53,155.43,27.96385114]
[1729100736972,6.4314,155.49,155.43,11.46225114]
[1729100741377,6.4309,155.5,155.43,11.46225114]
[1729100741583,30.48547028,155.53,155.45,11.46225114]
[1729100741779,6.70858628,155.53,155.45,11.46225114]
[1729100741971,6.4297,155.53,155.47,11.46225114]
[1729100742377,23.776884,155.54,155.42,6.2997]
[1729100742688,23.776884,155.52,155.42,17.76195114]
[1729100743369,6.4314,155.49,155.42,17.76195114]
[1729100747262,6.4323,155.47,155.4,1.11818651]
[1729100747677,6.4323,155.47,155.39,39.51437995]
[1729100748073,6.4328,155.46,155.39,28.05212881]
[1729100748389,6.433,155.45,155.39,39.51437995]
[1729100748687,6.4326,155.46,155.39,27.96385114]
[1729100750474,6.4321,155.47,155.39,27.96385114]
[1729100750792,6.4318,155.48,155.41,11.46225114]
[1729100751477,6.4321,155.47,155.41,11.46225114]
[1729100752267,6.4325,155.46,155.39,16.5016]
[1729100752480,6.4325,155.46,155.39,27.96385114]
[1729100757288,6.4333,155.44,155.34,7.83197461]
[1729100757499,6.4333,155.44,155.37,11.46225114]
[1729100758182,6.433,155.45,155.37,11.46225114]
[1729100758381,21.80971297,155.49,155.39,11.46225114]
[1729100758580,21.80971297,155.49,155.41,11.46225114]
[1729100758778,15.0905,155.49,155.41,11.46225114]
[1729100759590,6.71881767,155.5,155.43,11.46225114]
[1729100759775,36.1215,155.53,155.43,11.46225114]
[1729100760091,6.4309,155.5,155.43,11.46225114]
[1729100762270,15.0851,155.48,155.38,16.1049]
[1729100762477,6.4336,155.44,155.34,23.32335558]
[1729100762667,6.4336,155.44,155.35,11.46225114]
[1729100764383,6.4336,155.44,155.34,23.32335558]
[1729100764695,6.4336,155.44,155.35,35.23913514]
[1729100765583,6.4338,155.43,155.35,35.23913514]
[1729100766898,20.0,155.46,155.35,35.23913514]
[1729100767088,6.4334,155.44,155.35,35.23913514]
[1729100767292,6.4344,155.42,155.34,22.205]
[1729100767599,6.4344,155.42,155.35,11.46225114]
[1729100768473,6.4337,155.44,155.35,11.46225114]
[1729100769392,6.4337,155.44,155.34,22.205]
[1729100769604,6.4337,155.44,155.36,11.46225114]
[1729100771798,22.79617863,155.46,155.36,11.46225114]
[1729100771799,6.71457863,155.46,155.36,11.46225114]
[1729100772214,6.4333,155.44,155.36,11.46225114]
[1729100773880,6.4333,155.44,155.34,22.205]
[1729100773881,6.71457863,155.46,155.38,11.46225114]
[1729100774090,21.517,155.48,155.4,11.46225114]
[1729100774280,15.0851,155.48,155.4,11.46225114]
[1729100774691,6.4321,155.47,155.4,11.46225114]
[1729100777318,15.0851,155.48,155.34,6.5302]
[1729100777319,6.4336,155.44,155.34,6.5302]
[1729100777614,23.776884,155.47,155.35,11.46225114]
[1729100777811,6.434,155.43,155.35,11.46225114]
[1729100780000,6.4332,155.45,155.37,11.46225114]
[1729100780595,6.4327,155.46,155.37,11.46225114]
[1729100780997,6.4324,155.47,155.37,11.46225114]
[1729100781310,6.4325,155.46,155.37,11.46225114]
[1729100782111,6.4321,155.47,155.39,11.46225114]
[1729100782294,6.4337,155.43,155.34,6.5302]
[1729100782502,6.4337,155.43,155.35,11.46225114]
[1729100787315,6.435,155.4,155.32,1.11882055]
[1729100787499,6.435,155.4,155.32,11.46225114]
[1729100787703,6.435,155.4,155.32,12.58106359]
[1729100787904,6.435,155.4,155.34,11.46225114]
[1729100788811,16.0838,155.44,155.34,11.46225114]
[1729100788812,6.4346,155.41,155.34,11.46225114]
[1729100789014,21.5967,155.45,155.34,11.46225114]
[1729100789202,6.71134652,155.46,155.3,7.93356479]
[1729100789203,4.80901262,155.44,155.38,11.46225114]
[1729100789409,21.6967,155.49,155.38,11.46225114]
[1729100789606,6.4334,155.44,155.38,11.46225114]
[1729100789921,6.4334,155.44,155.36,11.46225114]
[1729100792405,6.4329,155.46,155.36,11.46225114]
[1729100792611,6.4329,155.46,155.38,11.46225114]
[1729100793822,6.433,155.45,155.38,11.46225114]
[1729100794320,6.433,155.45,155.36,35.23913514]
[1729100797427,6.433,155.45,155.36,23.776884]
[1729100797620,6.4333,155.44,155.36,23.776884]
[1729100797830,6.4333,155.44,155.37,11.46225114]
[1729100799327,6.4333,155.44,155.35,22.5327]
[1729100799526,6.435,155.4,155.32,11.55509441]
[1729100799912,6.435,155.4,155.32,23.01734555]
[1729100802420,29.25891344,155.44,155.3,1.11880473]
[1729100802421,6.4365,155.37,155.3,1.11880473]
[1729100802731,23.776884,155.38,155.26,11.46225114]
[1729100803227,6.4369,155.36,155.26,11.46225114]
[1729100803433,6.4369,155.36,155.26,12.5815497]
[1729100803641,6.4369,155.36,155.27,23.776884]
[1729100804324,6.4363,155.37,155.28,11.46225114]
[1729100805420,6.4371,155.35,155.28,11.46225114]
[1729100807035,30.375284,155.38,155.28,11.46225114]
[1729100807234,6.4367,155.36,155.28,11.46225114]
[1729100807438,6.4379,155.33,155.26,1.11929856]
[1729100807623,6.4379,155.33,155.24,11.46225114]
[1729100810334,6.4384,155.32,155.24,11.46225114]
[1729100811336,6.4384,155.32,155.21,17.08697552]
[1729100811536,6.4384,155.32,155.24,11.46225114]
[1729100811930,6.4384,155.32,155.25,0.249746]
[1729100812436,6.4384,155.32,155.21,12.58192666]
[1729100812437,6.4392,155.3,155.21,12.58192666]
[1729100812645,6.4392,155.3,155.21,11.46225114]
[1729100812825,6.4392,155.3,155.23,11.46225114]
[1729100814041,22.3702,155.31,155.23,11.46225114]
[1729100814423,6.4383,155.32,155.25,11.46225114]
[1729100815030,6.4381,155.33,155.25,11.46225114]
[1729100817534,6.4375,155.34,155.27,11.46225114]
[1729100818539,15.9315,155.35,155.27,11.46225114]
[1729100818540,22.3686,155.35,155.27,11.46225114]
[1729100821726,6.4374,155.34,155.27,11.46225114]
[1729100822039,15.9315,155.35,155.23,16.6609]
[1729100822040,6.4371,155.35,155.29,11.46225114]
[1729100822248,13.16198092,155.36,155.29,11.46225114]
[1729100822436,6.439,155.31,155.2,1.11980281]
[1729100822642,6.439,155.31,155.21,11.46225114]
[1729100823534,6.439,155.31,155.22,23.776884]
[1729100825625,6.72098599,155.33,155.21,11.46225114]
[1729100825841,6.4403,155.28,155.2,1.11980281]
[1729100826147,6.4403,155.28,155.19,11.46225114]
[1729100827349,6.4409,155.26,155.18,15.3637]
[1729100828535,6.4409,155.26,155.19,11.46225114]
[1729100829140,6.4407,155.27,155.23,6.442]
[1729100832346,22.9718,155.28,155.19,11.46225114]
[1729100835662,6.44,155.28,155.19,11.46225114]
[1729100836546,6.71864992,155.3,155.21,11.46225114]
[1729100836758,6.4395,155.29,155.21,11.46225114]
[1729100837061,13.15804992,155.3,155.21,11.46225114]
[1729100837257,23.776884,155.29,155.18,15.3637]
[1729100837460,6.4395,155.29,155.2,11.46225114]
[1729100840045,6.71864992,155.3,155.21,11.46225114]
[1729100840267,13.15814992,155.3,155.21,11.46225114]
[1729100841264,6.71864992,155.3,155.23,11.46225114]
[1729100841460,22.6618,155.32,155.23,11.46225114]
[1729100843868,16.2232,155.32,155.19,23.776884]
[1729100844163,6.4394,155.3,155.21,11.46225114]
[1729100847649,6.4394,155.3,155.19,23.776884]
[1729100847650,6.439,155.31,155.23,11.46225114]
[1729100847946,16.2232,155.32,155.23,11.46225114]
[1729100848155,6.4392,155.3,155.23,11.46225114]
[1729100848554,6.44,155.28,155.19,23.776884]
[1729100848750,6.44,155.28,155.2,11.46225114]
[1729100852176,6.72712172,155.3,155.2,11.46225114]
[1729100852373,6.4412,155.25,155.18,15.3637]
[1729100852552,6.4412,155.25,155.18,26.82595114]
[1729100853573,6.4409,155.26,155.18,26.82595114]
[1729100854071,6.4409,155.26,155.17,6.4269]
[1729100854072,6.4416,155.24,155.2,6.443]
[1729100855078,15.8372,155.25,155.17,11.46225114]
[1729100855255,6.4406,155.27,155.23,6.442]
[1729100862782,6.72306938,155.28,155.24,6.4413]
[1729100862783,13.16306938,155.28,155.24,6.4413]
[1729100862981,6.72306938,155.28,155.18,22.3019]
[1729100863151,6.4412,155.26,155.22,6.4421]
[1729100863483,6.4404,155.27,155.23,6.442]
[1729100866469,6.72306938,155.28,155.14,30.25930179]
[1729100866682,28.59418075,155.27,155.14,35.00215233]
[1729100866968,28.59418075,155.27,155.19,6.4435]
[1729100866969,6.4423,155.23,155.19,6.4435]
[1729100869070,6.4417,155.24,155.19,6.4435]
[1729100872785,6.4417,155.24,155.2,6.4432]
[1729100876682,6.72646544,155.25,155.19,11.46225114]
[1729100876870,6.72646544,155.25,155.22,6.4424]
[1729100877067,6.4409,155.26,155.22,6.4424]
[1729100880069,6.4412,155.25,155.21,6.4425]
[1729100880264,6.72574363,155.27,155.19,11.46225114]
[1729100880469,6.72574363,155.27,155.24,6.4415]
[1729100880679,13.16644363,155.27,155.23,6.4419]
[1729100881287,6.72574363,155.27,155.2,11.46225114]
[1729100881472,6.72574363,155.27,155.24,6.4416]
[1729100881880,6.72574363,155.27,155.23,6.4418]
[1729100883172,6.72574363,155.27,155.2,11.46225114]
[1729100883489,6.72574363,155.27,155.24,6.4415]
[1729100884690,6.72574363,155.27,155.2,17.68205114]
[1729100884876,6.72574363,155.27,155.22,11.46225114]
[1729100885079,6.72574363,155.27,155.26,6.4408]
[1729100885278,6.4394,155.3,155.26,6.4408]
[1729100888396,6.72062115,155.31,155.22,11.46225114]
[1729100888597,6.4386,155.32,155.25,23.776884]
[1729100889073,22.02193625,155.33,155.26,11.46225114]
[1729100889280,28.45993625,155.33,155.26,11.46225114]
[1729100889984,22.02193625,155.33,155.27,23.776884]
[1729100890300,6.72193625,155.33,155.27,23.776884]
[1729100891595,6.4378,155.34,155.27,23.776884]
[1729100891774,6.4384,155.32,155.26,23.776884]
[1729100892790,6.4397,155.29,155.21,23.776884]
[1729100893094,6.4392,155.3,155.23,23.776884]
[1729100893479,6.4392,155.3,155.22,11.46225114]
[1729100893776,6.4384,155.32,155.26,11.46225114]
[1729100893982,6.71958123,155.35,155.2,21.8632]
[1729100893983,6.4375,155.34,155.28,11.46225114]
[1729100894175,13.15668123,155.35,155.28,11.46225114]
[1729100895982,6.71958123,155.35,155.28,11.46225114]
[1729100896183,6.71958123,155.35,155.29,23.776884]
[1729100896396,6.4367,155.36,155.29,23.776884]
[1729100899780,29.46308432,155.37,155.3,11.46225114]
[1729100899998,22.7446,155.37,155.31,23.776884]
[1729100900505,6.4365,155.37,155.31,23.776884]
[1729100904597,20.0,155.37,155.31,23.776884]
[1729100904907,6.4367,155.36,155.31,23.776884]
[1729100905083,26.4363,155.37,155.31,23.776884]
[1729100906205,6.4363,155.37,155.31,23.776884]
[1729100917019,6.4361,155.38,155.31,23.776884]
[1729100917413,20.0,155.39,155.31,23.776884]
[1729100917724,6.4362,155.37,155.31,23.776884]
[1729100919995,6.4362,155.37,155.31,35.23913514]
[1729100922921,6.4362,155.37,155.31,23.776884]
[1729100923093,6.4362,155.37,155.31,35.23913514]
[1729100925610,20.0,155.39,155.31,35.23913514]
[1729100925795,6.4358,155.38,155.31,35.23913514]
[1729100928307,6.71553279,155.4,155.33,11.46225114]
[1729100928700,20.0,155.4,155.33,11.46225114]
[1729100929220,26.4352,155.4,155.33,11.46225114]
[1729100931728,6.72082897,155.42,155.39,11.46225114]
[1729100931902,15.3395,155.51,155.42,23.776884]
[1729100932103,6.4311,155.5,155.42,23.776884]
[1729100934615,20.0,155.5,155.43,11.46225114]
[1729100934928,15.0149,155.55,155.45,11.46225114]
[1729100935335,6.4295,155.54,155.45,11.46225114]
[1729100935918,6.4296,155.53,155.45,11.46225114]
[1729100936231,15.0149,155.55,155.47,11.46225114]
[1729100937229,21.444,155.55,155.47,11.46225114]
[1729100938715,27.46323971,155.56,155.47,11.46225114]
[1729100938716,21.42913971,155.56,155.49,11.46225114]
[1729100939055,21.42913971,155.56,155.5,23.776884]
[1729100941516,14.71697772,155.56,155.5,23.776884]
[1729100946206,14.71697772,155.56,155.51,11.46225114]
[1729100946814,14.71697772,155.56,155.52,23.776884]
[1729100947137,15.8937,155.59,155.53,11.46225114]
[1729100947338,0.631103,155.64,155.55,11.46225114]
[1729100947339,6.4259,155.62,155.55,11.46225114]
[1729100948027,15.3877,155.63,155.55,11.46225114]
[1729100948237,21.8134,155.63,155.55,11.46225114]
[1729100948718,15.3877,155.63,155.56,23.776884]
[1729100948918,15.3877,155.63,155.57,11.46225114]
[1729100949117,0.631103,155.64,155.58,23.776884]
[1729100949337,0.631103,155.64,155.59,11.46225114]
[1729100955344,7.056303,155.64,155.59,11.46225114]
[1729100955826,17.056303,155.67,155.59,11.46225114]
[1729100956422,17.056303,155.67,155.6,6.4266]
[1729100957536,6.4252,155.64,155.6,6.4266]
[1729100958225,17.056303,155.67,155.61,6.4262]
[1729100958226,6.4247,155.65,155.61,6.4262]
[1729100959922,17.056303,155.67,155.59,11.46225114]
[1729100960146,6.4242,155.66,155.62,6.4258]
[1729100960522,6.4242,155.66,155.59,11.46225114]
[1729100960722,6.4242,155.66,155.6,23.776884]
[1729100960930,22.99220868,155.68,155.6,23.776884]
[1729100961224,22.99220868,155.68,155.63,6.4253]
[1729100961225,6.4238,155.67,155.63,6.4253]
[1729100962226,6.70638851,155.7,155.61,11.46225114]
[1729100962424,41.75368145,155.72,155.63,11.46225114]
[1729100962627,6.70567511,155.71,155.63,11.46225114]
[1729100963545,6.4227,155.7,155.66,6.4239]
[1729100964249,6.70567511,155.71,155.64,23.776884]
[1729100964436,6.70567511,155.71,155.67,6.4234]
[1729100964744,28.79603239,155.72,155.67,6.4234]
[1729100964933,6.4222,155.71,155.67,6.4234]
[1729100965247,22.37423239,155.72,155.67,6.4234]
[1729100965741,16.052,155.75,155.67,6.4234]
[1729100965742,6.4222,155.71,155.67,6.4234]
[1729100966157,6.4222,155.71,155.65,11.46225114]
[1729100966343,6.4222,155.71,155.66,6.4239]
[1729100966938,20.0,155.72,155.63,15.4507]
[1729100967141,6.4235,155.68,155.64,6.425]
[1729100967446,6.4235,155.68,155.62,6.532]
[1729100967653,6.4235,155.68,155.63,6.4254]
[1729100967854,16.0558,155.71,155.59,15.576]
[1729100967855,6.4241,155.67,155.59,15.576]
[1729100968156,6.4241,155.67,155.62,6.4255]
[1729100968528,6.4241,155.67,155.63,6.4254]
[1729100972652,6.4231,155.69,155.62,11.46225114]
[1729100972858,6.4231,155.69,155.64,6.4249]
[1729100973044,6.4235,155.68,155.64,6.4249]
[1729100976055,6.4233,155.69,155.63,11.46225114]
[1729100976241,21.9874,155.7,155.65,6.4243]
[1729100977258,6.4233,155.69,155.64,6.4248]
[1729100977757,6.4236,155.68,155.63,17.88755114]
[1729100977942,6.423,155.69,155.65,6.4244]
[1729100979056,21.987,155.7,155.66,6.424]
[1729100981760,6.4226,155.7,155.66,6.424]
[1729100982651,6.1777,155.71,155.64,6.4249]
[1729100982956,6.4241,155.67,155.61,11.46225114]
[1729100983362,6.1777,155.71,155.61,11.46225114]
[1729100983363,6.4236,155.68,155.64,6.425]
[1729100985665,6.425,155.65,155.61,6.4262]
[1729100986248,16.0599,155.67,155.59,15.576]
[1729100986449,6.4257,155.63,155.59,6.4271]
[1729100986644,6.4257,155.63,155.58,6.4274]
[1729100987170,6.4264,155.61,155.57,6.4278]
[1729100987359,6.4264,155.61,155.56,6.4282]
[1729100988259,6.4268,155.6,155.56,6.4282]
[1729100988453,6.4264,155.61,155.56,6.4282]
[1729100989057,6.4264,155.61,155.57,6.4277]
[1729100989563,6.4266,155.61,155.57,6.4277]
[1729100990765,6.4262,155.62,155.57,6.4279]
[1729101000471,6.4258,155.63,155.59,6.4271]
[1729101000669,35.252,155.64,155.59,6.4271]
[1729101000864,41.6772,155.64,155.59,6.4271]
[1729101001065,41.6772,155.64,155.6,6.4265]
[1729101001066,6.4252,155.64,155.6,6.4265]
[1729101001457,6.4247,155.65,155.61,6.4263]
[1729101001652,6.4247,155.65,155.6,6.4265]
[1729101002175,6.7088266,155.67,155.59,6.427]
[1729101002378,20.0,155.66,155.59,6.427]
[1729101002855,6.4252,155.64,155.59,6.427]
[1729101004456,6.4247,155.65,155.61,6.4262]
[1729101004855,6.7088266,155.67,155.61,6.4262]
[1729101004856,6.4243,155.66,155.61,6.4262]
[1729101005159,13.1327266,155.67,155.6,11.46225114]
[1729101005369,22.4919,155.68,155.63,6.425]
[1729101005675,6.4237,155.68,155.63,6.425]
[1729101006376,6.4238,155.67,155.63,6.425]
[1729101007584,6.4235,155.68,155.63,6.425]
[1729101015180,6.428,155.57,155.53,6.4294]
[1729101015368,6.428,155.57,155.52,6.4298]
[1729101015768,16.0662,155.61,155.52,6.4298]
[1729101015968,6.428,155.57,155.52,6.4298]
[1729101016571,6.4286,155.56,155.51,6.4304]
[1729101016965,6.4288,155.55,155.5,6.4308]
[1729101017282,6.43,155.53,155.47,6.4317]
[1729101017668,6.43,155.53,155.48,6.4316]
[1729101017873,0.1,155.56,155.44,31.89791406]
[1729101018183,23.776884,155.57,155.44,22.3577]
[1729101018184,20.0,155.54,155.44,22.3577]
[1729101018477,6.43,155.53,155.47,6.4317]
[1729101018667,16.1718,155.56,155.45,6.4325]
[1729101018857,43.876884,155.55,155.45,6.4325]
[1729101019062,6.4311,155.5,155.45,6.4325]
[1729101019258,6.4314,155.49,155.44,6.4333]
[1729101019466,0.1,155.54,155.41,11.46225114]
[1729101019467,6.4319,155.48,155.42,6.4338]
[1729101019671,6.4319,155.48,155.41,11.46225114]
[1729101020074,15.7171,155.51,155.4,23.2678]
[1729101020262,6.4321,155.47,155.4,23.2678]
[1729101021591,6.4316,155.49,155.43,6.4336]
[1729101022479,6.4309,155.5,155.45,6.4329]
[1729101023468,6.4305,155.51,155.46,6.4323]
[1729101032907,6.4309,155.5,155.46,6.4323]
[1729101034796,6.4309,155.5,155.42,11.46225114]
[1729101034979,6.4309,155.5,155.46,6.4324]
[1729101035178,6.4309,155.5,155.42,11.46225114]
[1729101035380,6.4309,155.5,155.45,6.4328]
[1729101037609,13.12645206,155.5,155.45,6.4328]
[1729101042903,6.69555206,155.5,155.45,6.4328]
[1729101043111,6.4315,155.49,155.41,11.46225114]
[1729101043418,6.69555206,155.5,155.4,23.2678]
[1729101043419,22.77335206,155.5,155.4,23.2678]
[1729101043739,22.77335206,155.5,155.44,6.4333]
[1729101043740,6.4318,155.48,155.44,6.4333]
[1729101043918,6.69555206,155.5,155.41,11.46225114]
[1729101044085,6.69555206,155.5,155.47,6.4317]
[1729101044417,13.12635206,155.5,155.46,6.4322]
[1729101044618,6.69555206,155.5,155.47,6.432]
[1729101046718,6.69555206,155.5,155.43,11.46225114]
[1729101046919,6.69555206,155.5,155.46,6.4323]
[1729101047495,13.12645206,155.5,155.46,6.4323]
[1729101049329,6.69555206,155.5,155.41,11.46225114]
[1729101049493,6.4312,155.49,155.45,6.4328]
[1729101049691,13.12675206,155.5,155.45,6.4327]
[1729101050401,13.12675206,155.5,155.42,11.46225114]
[1729101050601,13.12675206,155.5,155.46,6.4321]
[1729101055515,6.69555206,155.5,155.4,23.2678]
[1729101055696,6.69555206,155.5,155.42,11.46225114]
[1729101056123,6.69555206,155.5,155.44,11.46225114]
[1729101056424,6.4292,155.54,155.5,6.4307]
[1729101057111,6.4292,155.54,155.5,6.4305]
[1729101057818,32.58306873,155.55,155.51,6.4304]
[1729101059100,22.545,155.55,155.51,6.4304]
[1729101059300,16.1162,155.55,155.46,21.5719]
[1729101059501,6.4292,155.54,155.5,6.4308]
[1729101062706,6.4301,155.52,155.46,21.5719]
[1729101063525,6.39668389,155.52,155.48,6.4313]
[1729101065615,6.4296,155.53,155.49,6.4311]
[1729101070847,16.1162,155.55,155.46,33.03415114]
[1729101071129,10.03714933,155.56,155.52,6.4297]
[1729101071130,16.46584933,155.56,155.52,6.4297]
[1729101071530,10.03714933,155.56,155.47,23.776884]
[1729101071712,16.46584933,155.56,155.52,6.43]
[1729101071913,16.46554933,155.56,155.52,6.4299]
[1729101073125,10.03714933,155.56,155.46,21.5719]
[1729101073334,6.4291,155.55,155.5,6.4306]
[1729101077519,20.0,155.55,155.46,15.5513]
[1729101077718,6.4305,155.51,155.43,35.23913514]
[1729101077914,6.4305,155.51,155.47,6.4318]
[1729101078711,36.0727,155.55,155.48,6.4316]
[1729101078712,6.4301,155.52,155.48,6.4316]
[1729101080111,6.4305,155.51,155.47,6.432]
[1729101080313,43.776884,155.53,155.42,21.3845]
[1729101081416,6.4313,155.49,155.45,6.4327]
[1729101082333,43.776884,155.53,155.45,6.4327]
[1729101082636,6.4309,155.5,155.45,6.4327]
[1729101083818,50.47325404,155.53,155.42,32.84675114]
[1729101083819,26.69637004,155.53,155.44,11.46225114]
[1729101084131,6.4302,155.52,155.48,6.4316]
[1729101084933,20.0,155.57,155.46,11.46225114]
[1729101085236,6.4282,155.57,155.53,6.4296]
[1729101086134,16.1348,155.58,155.5,11.46225114]
[1729101086336,22.5626,155.58,155.54,6.4291]
[1729101086533,16.72838839,155.6,155.52,11.46225114]
[1729101086735,10.03480343,155.6,155.54,11.46225114]
[1729101087236,6.4263,155.62,155.54,11.46225114]
[1729101087816,6.4263,155.62,155.57,6.4279]
[1729101088828,6.4264,155.61,155.56,6.4283]
[1729101092936,20.0,155.62,155.57,6.4279]
[1729101093116,6.4262,155.62,155.57,6.4279]
[1729101093322,6.4263,155.61,155.57,6.4279]
[1729101095340,6.4261,155.62,155.58,6.4274]
[1729101098222,6.4265,155.61,155.57,6.4279]
[1729101098422,6.4265,155.61,155.56,6.4282]
[1729101099256,22.75596435,155.63,155.51,23.776884]
[1729101099425,6.4279,155.58,155.54,6.4289]
[1729101099936,6.4279,155.58,155.53,6.4295]
[1729101100118,6.4282,155.57,155.52,6.4296]
[1729101100541,6.4282,155.57,155.53,6.4296]
[1729101103938,6.4282,155.57,155.53,6.4296]
[1729101106951,6.4276,155.58,155.54,6.4291]
[1729101111451,6.4268,155.6,155.56,6.4283]
[1729101112158,6.4266,155.61,155.57,6.4279]
[1729101112344,26.4268,155.6,155.56,6.4282]
[1729101112943,20.0,155.61,155.51,11.46225114]
[1729101113136,20.0,155.61,155.5,23.776884]
[1729101113555,6.4276,155.58,155.54,6.4289]
[1729101114844,6.4283,155.56,155.52,6.4298]
[1729101117435,6.4303,155.52,155.47,6.432]
[1729101118348,6.4303,155.52,155.48,6.4316]
[1729101119165,16.0717,155.56,155.45,11.46225114]
[1729101119343,6.4292,155.54,155.49,6.4312]
[1729101119858,6.4292,155.54,155.49,17.89345114]
[1729101120238,6.4297,155.53,155.49,6.4312]
[1729101125242,6.4297,155.53,155.44,22.0445]
[1729101125243,6.4304,155.51,155.46,11.46225114]
[1729101127947,6.4302,155.52,155.48,6.4316]
[1729101128160,6.4296,155.53,155.49,6.431]
[1729101130451,22.76226165,155.56,155.46,11.46225114]
[1729101130653,6.4296,155.53,155.49,6.4311]
[1729101136154,6.4302,155.52,155.44,22.0445]
[1729101136349,6.4302,155.52,155.47,6.4318]
[1729101139079,59.850084,155.54,155.44,22.0445]
[1729101139252,65.872084,155.54,155.42,12.58035625]
[1729101139454,65.872084,155.54,155.42,11.46225114]
[1729101139763,6.4315,155.49,155.45,6.4328]
[1729101140380,6.68976172,155.53,155.44,11.46225114]
[1729101140559,6.68976172,155.53,155.46,11.46225114]
[1729101140560,13.11966172,155.53,155.46,11.46225114]
[1729101140758,26.022,155.54,155.48,6.4315]
[1729101140759,6.43,155.52,155.48,6.4315]
[1729101142860,23.776884,155.53,155.42,8.60108185]
[1729101143161,6.4316,155.49,155.44,6.4332]
[1729101144682,6.4316,155.49,155.45,6.4327]
[1729101146690,6.431,155.5,155.45,6.4327]
[1729101148972,20.0,155.52,155.4,22.0096]
[1729101148973,6.4321,155.47,155.43,6.4336]
[1729101149362,6.4321,155.47,155.42,6.4339]
[1729101150189,6.4321,155.47,155.42,17.89615114]
[1729101150377,6.4321,155.47,155.43,6.4337]
[1729101151775,20.0,155.5,155.43,6.4337]
[1729101151979,6.4322,155.47,155.42,6.434]